[Event "*** Titled Tuesday Blitz"]
[Site "Chess.com"]
[Date "2018.04.03"]
[Round "6"]
[White "abubakrtagelsir"]
[Black "TastyFrenchFries"]
[Result "0-1"]
[WhiteElo "2260"]
[BlackElo "2324"]
[TimeControl "180+2"]
[EndTime "14:18:08 PDT"]
[Termination "TastyFrenchFries won by resignation"]

1. e4 {[%clk 0:02:56.3]} 1... e6 {[%clk 0:03:01.9]} 2. d4 {[%clk 0:02:55.7]}
2... d5 {[%clk 0:02:57.4]} 3. Nc3 {[%clk 0:02:55.6]} 3... Bb4 {[%clk 0:02:57.1]}
4. e5 {[%clk 0:02:48.3]} 4... c5 {[%clk 0:02:56.9]} 5. a3 {[%clk 0:02:46.6]}
5... Bxc3+ {[%clk 0:02:56.8]} 6. bxc3 {[%clk 0:02:46.5]} 6... Ne7 {[%clk
0:02:58.7]} 7. Qg4 {[%clk 0:02:44.6]} 7... Qc7 {[%clk 0:02:59.6]} 8. Qxg7 {[%clk
0:02:40.9]} 8... Rg8 {[%clk 0:02:57.9]} 9. Qxh7 {[%clk 0:02:38.9]} 9... cxd4
{[%clk 0:02:57.2]} 10. Ne2 {[%clk 0:02:38.7]} 10... dxc3 {[%clk 0:02:55.9]} 11.
f4 {[%clk 0:02:36.7]} 11... Nbc6 {[%clk 0:02:56]} 12. Qd3 {[%clk 0:02:35.3]}
12... Bd7 {[%clk 0:02:53.9]} 13. h4 {[%clk 0:02:35]} 13... d4 {[%clk 0:02:52.8]}
14. h5 {[%clk 0:02:34.9]} 14... O-O-O {[%clk 0:02:53.4]} 15. h6 {[%clk
0:02:35.6]} 15... Qb6 {[%clk 0:02:52.3]} 16. h7 {[%clk 0:02:35.7]} 16... Rh8
{[%clk 0:02:52.7]} 17. g4 {[%clk 0:02:27.2]} 17... Nd5 {[%clk 0:02:26.8]} 18.
Bg2 {[%clk 0:02:23]} 18... Be8 {[%clk 0:02:16.1]} 19. Be4 {[%clk 0:01:55.7]}
19... Kb8 {[%clk 0:02:09.2]} 20. g5 {[%clk 0:01:45.9]} 20... Nc7 {[%clk
0:01:46.2]} 21. Rh6 {[%clk 0:01:36.4]} 21... Na6 {[%clk 0:01:43.8]} 22. Ng3
{[%clk 0:00:46.9]} 22... Nc5 {[%clk 0:01:08.1]} 23. Qc4 {[%clk 0:00:39.9]} 23...
Nxe4 {[%clk 0:00:54.8]} 24. Nxe4 {[%clk 0:00:40]} 24... d3 {[%clk 0:00:45.2]}
25. Qc5 {[%clk 0:00:14.1]} 25... d2+ {[%clk 0:00:44.5]} 26. Ke2 {[%clk
0:00:11.4]} 26... d1=Q+ {[%clk 0:00:43.4]} 27. Ke3 {[%clk 0:00:08.4]} 27...
Qxc5+ {[%clk 0:00:44.4]} 28. Nxc5 {[%clk 0:00:08.9]} 28... Qd4+ {[%clk
0:00:45.5]} 29. Kf3 {[%clk 0:00:09.7]} 29... Qxc5 {[%clk 0:00:46.5]} 30. Be3
{[%clk 0:00:10.6]} 30... Qd5+ {[%clk 0:00:43.2]} 31. Kf2 {[%clk 0:00:11.2]}
31... Nd4 {[%clk 0:00:42.9]} 32. Rd1 {[%clk 0:00:10.5]} 32... Qf3+ {[%clk
0:00:43.3]} 0-1

[Event "*** Titled Tuesday Blitz"]
[Site "Chess.com"]
[Date "2018.04.03"]
[Round "6"]
[White "KNVB"]
[Black "gkchesstiger"]
[Result "0-1"]
[WhiteElo "2592"]
[BlackElo "2766"]
[TimeControl "180+2"]
[EndTime "14:18:10 PDT"]
[Termination "gkchesstiger won by checkmate"]

1. d4 {[%clk 0:03:01.9]} 1... d5 {[%clk 0:03:00]} 2. c4 {[%clk 0:02:52]} 2... c6
{[%clk 0:03:00.4]} 3. Nf3 {[%clk 0:02:46.3]} 3... Nf6 {[%clk 0:03:00.7]} 4. e3
{[%clk 0:02:42.7]} 4... Bg4 {[%clk 0:03:00.5]} 5. h3 {[%clk 0:02:30.4]} 5...
Bxf3 {[%clk 0:03:01]} 6. Qxf3 {[%clk 0:02:31.2]} 6... e6 {[%clk 0:03:02.2]} 7.
Bd3 {[%clk 0:02:30.4]} 7... Nbd7 {[%clk 0:03:00.9]} 8. Nc3 {[%clk 0:02:15.7]}
8... Be7 {[%clk 0:02:53.4]} 9. cxd5 {[%clk 0:01:51]} 9... cxd5 {[%clk
0:02:49.2]} 10. O-O {[%clk 0:01:40]} 10... O-O {[%clk 0:02:48.4]} 11. Bd2 {[%clk
0:01:35.9]} 11... Nb6 {[%clk 0:02:45.8]} 12. Rfc1 {[%clk 0:01:29.5]} 12... Rc8
{[%clk 0:02:46.3]} 13. Be1 {[%clk 0:01:23]} 13... Qd7 {[%clk 0:02:32.9]} 14. Qd1
{[%clk 0:01:19.3]} 14... Nc4 {[%clk 0:02:29.2]} 15. Rab1 {[%clk 0:00:44.9]}
15... a6 {[%clk 0:02:27.8]} 16. Ne2 {[%clk 0:00:38.4]} 16... Rc6 {[%clk
0:02:18.5]} 17. b3 {[%clk 0:00:36.5]} 17... Nd6 {[%clk 0:02:15.7]} 18. Rxc6
{[%clk 0:00:36.9]} 18... Qxc6 {[%clk 0:02:16.3]} 19. Rc1 {[%clk 0:00:37.3]}
19... Qd7 {[%clk 0:02:17.4]} 20. f3 {[%clk 0:00:33.4]} 20... Rc8 {[%clk
0:02:17.1]} 21. Bd2 {[%clk 0:00:22.5]} 21... g6 {[%clk 0:02:16.3]} 22. g4 {[%clk
0:00:23]} 22... Rc6 {[%clk 0:02:15.3]} 23. Rxc6 {[%clk 0:00:22.8]} 23... Qxc6
{[%clk 0:02:15.9]} 24. Qc2 {[%clk 0:00:23.7]} 24... Qd7 {[%clk 0:02:16.4]} 25.
Kg2 {[%clk 0:00:22.4]} 25... Nb5 {[%clk 0:02:08.7]} 26. a4 {[%clk 0:00:22.6]}
26... Na7 {[%clk 0:02:09.4]} 27. b4 {[%clk 0:00:10.4]} 27... Ne8 {[%clk
0:02:01.2]} 28. e4 {[%clk 0:00:06.2]} 28... dxe4 {[%clk 0:01:59.7]} 29. fxe4
{[%clk 0:00:07.2]} 29... Nc6 {[%clk 0:01:59.2]} 30. Qc3 {[%clk 0:00:04.6]} 30...
Bxb4 {[%clk 0:01:59]} 31. Qb2 {[%clk 0:00:03.4]} 31... Bxd2 {[%clk 0:01:59.6]}
32. Qxd2 {[%clk 0:00:05.3]} 32... Nc7 {[%clk 0:01:51.9]} 33. Qc3 {[%clk
0:00:03.4]} 33... b5 {[%clk 0:01:51.1]} 34. axb5 {[%clk 0:00:04.2]} 34... Nxb5
{[%clk 0:01:51.7]} 35. Bxb5 {[%clk 0:00:05]} 35... axb5 {[%clk 0:01:52.9]} 36.
Qc5 {[%clk 0:00:05.9]} 36... Qb7 {[%clk 0:01:48.6]} 37. Kg3 {[%clk 0:00:03.8]}
37... b4 {[%clk 0:01:48.8]} 38. d5 {[%clk 0:00:04.9]} 38... exd5 {[%clk
0:01:49.2]} 39. exd5 {[%clk 0:00:06.8]} 39... Ne5 {[%clk 0:01:42.8]} 40. d6
{[%clk 0:00:03.1]} 40... Qf3+ {[%clk 0:01:42.2]} 41. Kh4 {[%clk 0:00:04.2]}
41... Qxe2 {[%clk 0:01:37.9]} 42. Qc8+ {[%clk 0:00:03.5]} 42... Kg7 {[%clk
0:01:38.7]} 43. d7 {[%clk 0:00:03.6]} 43... Qe1+ {[%clk 0:01:39.5]} 44. Kg5
{[%clk 0:00:04.2]} 44... Qe3+ {[%clk 0:01:37.8]} 45. Kh4 {[%clk 0:00:05.1]}
45... Qf2+ {[%clk 0:01:39]} 46. Kg5 {[%clk 0:00:05.4]} 46... h6# {[%clk
0:01:40.1]} 0-1

[Event "*** Titled Tuesday Blitz"]
[Site "Chess.com"]
[Date "2018.04.03"]
[Round "6"]
[White "simplerXiao"]
[Black "Mistheoretical"]
[Result "0-1"]
[WhiteElo "2406"]
[BlackElo "2312"]
[TimeControl "180+2"]
[EndTime "14:18:10 PDT"]
[Termination "Mistheoretical won by resignation"]

1. e4 {[%clk 0:03:01.9]} 1... e6 {[%clk 0:03:00.8]} 2. d4 {[%clk 0:03:02.3]}
2... d5 {[%clk 0:03:02.7]} 3. Nd2 {[%clk 0:03:01.3]} 3... Nf6 {[%clk 0:03:03.6]}
4. e5 {[%clk 0:03:01.8]} 4... Nfd7 {[%clk 0:03:05.2]} 5. Bd3 {[%clk 0:03:02.7]}
5... c5 {[%clk 0:03:06.6]} 6. c3 {[%clk 0:03:04.1]} 6... Nc6 {[%clk 0:03:08]} 7.
Ngf3 {[%clk 0:03:04.6]} 7... Be7 {[%clk 0:03:07.7]} 8. O-O {[%clk 0:03:05.1]}
8... a5 {[%clk 0:03:08.4]} 9. Re1 {[%clk 0:03:05.3]} 9... cxd4 {[%clk
0:03:09.1]} 10. cxd4 {[%clk 0:03:06.1]} 10... g5 {[%clk 0:03:10.6]} 11. Nf1
{[%clk 0:02:22.3]} 11... g4 {[%clk 0:02:59.1]} 12. N3d2 {[%clk 0:02:22.8]} 12...
h5 {[%clk 0:02:49.5]} 13. Ne3 {[%clk 0:01:50.3]} 13... Nxd4 {[%clk 0:02:46.5]}
14. Qa4 {[%clk 0:01:47.6]} 14... Nc6 {[%clk 0:02:26.7]} 15. Nxd5 {[%clk
0:01:37.4]} 15... Nc5 {[%clk 0:02:18.3]} 16. Qb5 {[%clk 0:00:58.5]} 16... Qxd5
{[%clk 0:02:03.8]} 17. Bc4 {[%clk 0:00:57.9]} 17... Qd8 {[%clk 0:01:53.5]} 18.
Nf1 {[%clk 0:00:52.8]} 18... Bd7 {[%clk 0:01:50.7]} 19. Bb3 {[%clk 0:00:33.3]}
19... Nd4 {[%clk 0:01:30.6]} 20. Qc4 {[%clk 0:00:30.4]} 20... Bb5 {[%clk
0:01:25.8]} 21. Qc3 {[%clk 0:00:27.6]} 21... Ncxb3 {[%clk 0:01:21]} 22. axb3
{[%clk 0:00:27.9]} 22... Bb4 {[%clk 0:01:20.3]} 23. Qe3 {[%clk 0:00:20.8]} 23...
Nc2 {[%clk 0:01:19]} 24. Qe4 {[%clk 0:00:18.6]} 24... Nxa1 {[%clk 0:01:07.3]}
25. Re3 {[%clk 0:00:15.4]} 25... Bc6 {[%clk 0:01:06.1]} 26. Qf4 {[%clk
0:00:14.8]} 26... Nc2 {[%clk 0:01:04.4]} 27. Re2 {[%clk 0:00:13]} 27... Nd4
{[%clk 0:01:02.7]} 28. Re3 {[%clk 0:00:14.3]} 28... Nf5 {[%clk 0:00:58.6]} 29.
Re2 {[%clk 0:00:14.2]} 29... Qd1 {[%clk 0:00:50.8]} 30. Qc4 {[%clk 0:00:12.2]}
30... Qd5 {[%clk 0:00:40]} 31. Ne3 {[%clk 0:00:06.4]} 31... Nxe3 {[%clk
0:00:40.9]} 0-1

[Event "*** Titled Tuesday Blitz"]
[Site "Chess.com"]
[Date "2018.04.03"]
[Round "6"]
[White "Fins0905"]
[Black "SantoBlue"]
[Result "1-0"]
[WhiteElo "2598"]
[BlackElo "2608"]
[TimeControl "180+2"]
[EndTime "14:18:23 PDT"]
[Termination "Fins0905 won by resignation"]

1. d4 {[%clk 0:03:01.9]} 1... Nf6 {[%clk 0:02:55.7]} 2. Nf3 {[%clk 0:03:02.6]}
2... e6 {[%clk 0:02:56]} 3. c4 {[%clk 0:03:01.5]} 3... b6 {[%clk 0:02:57]} 4. g3
{[%clk 0:03:02.1]} 4... Bb7 {[%clk 0:02:54.9]} 5. Bg2 {[%clk 0:03:02.9]} 5...
Be7 {[%clk 0:02:56.4]} 6. O-O {[%clk 0:03:03.5]} 6... O-O {[%clk 0:02:57.9]} 7.
Nc3 {[%clk 0:03:04.2]} 7... Ne4 {[%clk 0:02:58.6]} 8. Bd2 {[%clk 0:03:05.5]}
8... Nxd2 {[%clk 0:02:59.6]} 9. Qxd2 {[%clk 0:03:06.2]} 9... d6 {[%clk
0:03:00.9]} 10. e4 {[%clk 0:03:06.9]} 10... Nd7 {[%clk 0:02:59.8]} 11. Rad1
{[%clk 0:03:05.9]} 11... Bf6 {[%clk 0:02:58]} 12. h4 {[%clk 0:03:01.7]} 12... h5
{[%clk 0:02:57.3]} 13. Rfe1 {[%clk 0:03:00.9]} 13... g6 {[%clk 0:02:57.1]} 14.
e5 {[%clk 0:02:36.3]} 14... dxe5 {[%clk 0:02:53.4]} 15. Nxe5 {[%clk 0:02:16.9]}
15... Bxg2 {[%clk 0:02:53.1]} 16. Kxg2 {[%clk 0:02:18.2]} 16... Nxe5 {[%clk
0:02:52.9]} 17. dxe5 {[%clk 0:02:18.6]} 17... Qxd2 {[%clk 0:02:53.7]} 18. Rxd2
{[%clk 0:02:20.5]} 18... Rfd8 {[%clk 0:02:54.4]} 19. Rxd8+ {[%clk 0:02:11.5]}
19... Bxd8 {[%clk 0:02:55.4]} 20. Rd1 {[%clk 0:02:07.6]} 20... Kf8 {[%clk
0:02:56.7]} 21. Ne4 {[%clk 0:01:49.1]} 21... Ke8 {[%clk 0:02:52.2]} 22. Kf3
{[%clk 0:01:42.1]} 22... a5 {[%clk 0:02:48.8]} 23. a4 {[%clk 0:01:37.8]} 23...
Be7 {[%clk 0:02:48]} 24. Nf6+ {[%clk 0:01:15.6]} 24... Bxf6 {[%clk 0:02:44]} 25.
exf6 {[%clk 0:01:17.5]} 25... Rc8 {[%clk 0:02:33.9]} 26. Kf4 {[%clk 0:01:15]}
26... Rb8 {[%clk 0:02:28.9]} 27. f3 {[%clk 0:01:04]} 27... c6 {[%clk 0:02:24.6]}
28. g4 {[%clk 0:00:48.9]} 28... b5 {[%clk 0:02:25.7]} 29. axb5 {[%clk
0:00:46.4]} 29... cxb5 {[%clk 0:02:26.7]} 30. cxb5 {[%clk 0:00:33.1]} 30... Rxb5
{[%clk 0:02:27.1]} 31. Rd2 {[%clk 0:00:29.4]} 31... Rc5 {[%clk 0:02:07.8]} 32.
b3 {[%clk 0:00:22.9]} 32... Rb5 {[%clk 0:02:08.4]} 33. Rc2 {[%clk 0:00:21.8]}
33... e5+ {[%clk 0:02:04.7]} 34. Ke4 {[%clk 0:00:15.1]} 34... Rxb3 {[%clk
0:02:04.6]} 35. Kxe5 {[%clk 0:00:14.1]} 35... Rxf3 {[%clk 0:01:57.9]} 36. g5
{[%clk 0:00:12.9]} 36... Rf5+ {[%clk 0:01:56.3]} 37. Kd6 {[%clk 0:00:13.6]}
37... Kd8 {[%clk 0:01:56.3]} 38. Rb2 {[%clk 0:00:12.3]} 38... Kc8 {[%clk
0:01:57.4]} 39. Re2 {[%clk 0:00:13.1]} 39... a4 {[%clk 0:01:53.2]} 40. Re7
{[%clk 0:00:10.6]} 40... a3 {[%clk 0:01:50.2]} 41. Ra7 {[%clk 0:00:08.2]} 41...
Rf3 {[%clk 0:01:45.9]} 42. Ke7 {[%clk 0:00:07.8]} 42... Rc3 {[%clk 0:01:41.5]}
43. Ra4 {[%clk 0:00:05]} 43... Rc7+ {[%clk 0:01:41.5]} 44. Kf8 {[%clk
0:00:05.9]} 44... Kb7 {[%clk 0:01:38.6]} 45. Rxa3 {[%clk 0:00:06.1]} 45... Rd7
{[%clk 0:01:37]} 46. Re3 {[%clk 0:00:06.5]} 46... Kc6 {[%clk 0:01:38.3]} 47. Re7
{[%clk 0:00:07.7]} 47... Rd4 {[%clk 0:01:38.1]} 48. Kxf7 {[%clk 0:00:08.7]}
48... Rxh4 {[%clk 0:01:39.4]} 49. Kxg6 {[%clk 0:00:10.1]} 49... Kd6 {[%clk
0:01:39.3]} 50. Re8 {[%clk 0:00:09.9]} 1-0

[Event "*** Titled Tuesday Blitz"]
[Site "Chess.com"]
[Date "2018.04.03"]
[Round "6"]
[White "igorkovalenko"]
[Black "eldur16"]
[Result "1-0"]
[WhiteElo "2694"]
[BlackElo "2543"]
[TimeControl "180+2"]
[EndTime "14:18:26 PDT"]
[Termination "igorkovalenko won by resignation"]

1. d4 {[%clk 0:03:01.9]} 1... Nf6 {[%clk 0:02:59.9]} 2. Nc3 {[%clk 0:03:02]}
2... g6 {[%clk 0:02:58.6]} 3. e4 {[%clk 0:03:02.5]} 3... d6 {[%clk 0:02:59.5]}
4. f4 {[%clk 0:03:04]} 4... Bg7 {[%clk 0:03:00.2]} 5. Nf3 {[%clk 0:03:05.7]}
5... O-O {[%clk 0:03:01]} 6. Bd3 {[%clk 0:03:05.1]} 6... Nc6 {[%clk 0:03:01.2]}
7. O-O {[%clk 0:03:04.4]} 7... e5 {[%clk 0:03:01.4]} 8. dxe5 {[%clk 0:03:01.9]}
8... dxe5 {[%clk 0:03:02.1]} 9. f5 {[%clk 0:02:51.1]} 9... Nd4 {[%clk
0:02:38.4]} 10. Bg5 {[%clk 0:02:49.4]} 10... c6 {[%clk 0:02:36.3]} 11. Kh1
{[%clk 0:02:49.4]} 11... Qd6 {[%clk 0:02:18.6]} 12. Nh4 {[%clk 0:02:42.7]} 12...
b5 {[%clk 0:02:14.9]} 13. Ne2 {[%clk 0:02:40.3]} 13... Bb7 {[%clk 0:02:02.5]}
14. Ng3 {[%clk 0:02:36.2]} 14... h6 {[%clk 0:01:42.3]} 15. Be3 {[%clk
0:02:34.1]} 15... g5 {[%clk 0:01:41.1]} 16. Nf3 {[%clk 0:02:34.7]} 16... Rfd8
{[%clk 0:01:33.1]} 17. Bxd4 {[%clk 0:02:35.3]} 17... exd4 {[%clk 0:01:27]} 18.
e5 {[%clk 0:02:36.3]} 18... Qc7 {[%clk 0:01:23.3]} 19. exf6 {[%clk 0:02:37.4]}
19... Bxf6 {[%clk 0:01:24]} 20. Nh5 {[%clk 0:02:38.8]} 20... Qd6 {[%clk
0:01:21.9]} 21. Qd2 {[%clk 0:02:34.2]} 21... c5 {[%clk 0:01:07.2]} 22. Bxb5
{[%clk 0:02:33.7]} 22... Rab8 {[%clk 0:01:05.9]} 23. Bc4 {[%clk 0:02:34.6]}
23... Bxf3 {[%clk 0:01:01.6]} 24. Rxf3 {[%clk 0:02:34.5]} 24... Rxb2 {[%clk
0:01:02.3]} 25. Re1 {[%clk 0:02:32.9]} 25... Rdb8 {[%clk 0:01:01.2]} 26. Rb3
{[%clk 0:02:28.4]} 26... R8xb3 {[%clk 0:00:59]} 27. axb3 {[%clk 0:02:29.4]}
27... Be5 {[%clk 0:00:56.5]} 28. Qe2 {[%clk 0:02:20.6]} 28... Kf8 {[%clk
0:00:50.6]} 29. g3 {[%clk 0:02:19.8]} 29... f6 {[%clk 0:00:44.7]} 30. Bd3 {[%clk
0:02:18.6]} 30... Qc6+ {[%clk 0:00:28.7]} 31. Be4 {[%clk 0:02:03.2]} 31... Qb6
{[%clk 0:00:23.7]} 32. Qc4 {[%clk 0:01:52.4]} 32... Qb4 {[%clk 0:00:20.8]} 33.
Qxb4 {[%clk 0:01:53.1]} 33... cxb4 {[%clk 0:00:21.5]} 34. Bd3 {[%clk 0:01:54.5]}
34... Ra2 {[%clk 0:00:18.1]} 35. Kg2 {[%clk 0:01:51.9]} 35... a5 {[%clk
0:00:18.7]} 36. Kf3 {[%clk 0:01:52.9]} 36... a4 {[%clk 0:00:19.1]} 37. bxa4
{[%clk 0:01:54.2]} 37... Rxa4 {[%clk 0:00:19.5]} 38. Rb1 {[%clk 0:01:55.6]}
38... Ke7 {[%clk 0:00:19.6]} 39. Ng7 {[%clk 0:01:55.5]} 39... Kd6 {[%clk
0:00:19.9]} 40. Ne6 {[%clk 0:01:56.8]} 40... Kd5 {[%clk 0:00:19.9]} 41. h4
{[%clk 0:01:56.6]} 41... Kd6 {[%clk 0:00:19]} 42. hxg5 {[%clk 0:01:57.4]} 42...
hxg5 {[%clk 0:00:19.9]} 43. g4 {[%clk 0:01:58.9]} 43... Kd5 {[%clk 0:00:20.8]}
44. Rb3 {[%clk 0:01:57.1]} 44... Kd6 {[%clk 0:00:21.2]} 45. Ke4 {[%clk
0:01:58.2]} 45... Ra1 {[%clk 0:00:21.2]} 46. Rxb4 {[%clk 0:01:59.3]} 46... Re1+
{[%clk 0:00:21.8]} 47. Kf3 {[%clk 0:02:00.5]} 47... Re3+ {[%clk 0:00:22.6]} 48.
Kf2 {[%clk 0:02:01.3]} 48... Kd5 {[%clk 0:00:23]} 49. Rb5+ {[%clk 0:02:01.9]}
49... Kd6 {[%clk 0:00:23.4]} 50. Nc5 {[%clk 0:02:02.2]} 50... Bg3+ {[%clk
0:00:21.7]} 51. Kg2 {[%clk 0:02:03.1]} 51... Be5 {[%clk 0:00:22.4]} 52. Ne4+
{[%clk 0:02:04.2]} 52... Kc6 {[%clk 0:00:23]} 53. Rxe5 {[%clk 0:02:04.6]} 53...
fxe5 {[%clk 0:00:23.1]} 54. Nxg5 {[%clk 0:02:06.1]} 54... Kd7 {[%clk 0:00:18.3]}
55. Ne4 {[%clk 0:02:07.4]} 55... Re1 {[%clk 0:00:17.7]} 56. g5 {[%clk
0:02:08.5]} 1-0

[Event "*** Titled Tuesday Blitz"]
[Site "Chess.com"]
[Date "2018.04.03"]
[Round "6"]
[White "TigranLPetrosyan"]
[Black "JozefKneht"]
[Result "1-0"]
[WhiteElo "2657"]
[BlackElo "2430"]
[TimeControl "180+2"]
[EndTime "14:18:32 PDT"]
[Termination "TigranLPetrosyan won by checkmate"]

1. Nf3 {[%clk 0:03:01.9]} 1... d5 {[%clk 0:02:58]} 2. g3 {[%clk 0:03:03.8]} 2...
c6 {[%clk 0:02:58.1]} 3. Bg2 {[%clk 0:03:05.7]} 3... Bf5 {[%clk 0:02:58.6]} 4.
c4 {[%clk 0:03:06.2]} 4... e6 {[%clk 0:02:57.7]} 5. cxd5 {[%clk 0:03:06.9]} 5...
cxd5 {[%clk 0:02:55.8]} 6. Qb3 {[%clk 0:03:07.1]} 6... Qb6 {[%clk 0:02:54.7]} 7.
Qxb6 {[%clk 0:03:06.7]} 7... axb6 {[%clk 0:02:56.6]} 8. Nc3 {[%clk 0:03:07.8]}
8... Nc6 {[%clk 0:02:33.8]} 9. O-O {[%clk 0:03:07]} 9... Nf6 {[%clk 0:02:32.8]}
10. d3 {[%clk 0:03:06.3]} 10... Bc5 {[%clk 0:02:07.5]} 11. a3 {[%clk 0:03:05.9]}
11... Ke7 {[%clk 0:01:59.4]} 12. Bf4 {[%clk 0:03:04.3]} 12... Nd4 {[%clk
0:01:45.1]} 13. Nxd4 {[%clk 0:03:04.2]} 13... Bxd4 {[%clk 0:01:45.1]} 14. Rfc1
{[%clk 0:03:01.3]} 14... Rhc8 {[%clk 0:01:35.4]} 15. h3 {[%clk 0:03:01.1]} 15...
h6 {[%clk 0:01:12.8]} 16. Bd2 {[%clk 0:02:54.9]} 16... Bg6 {[%clk 0:01:06.1]}
17. Bf1 {[%clk 0:02:49.1]} 17... Nd7 {[%clk 0:00:55.5]} 18. e3 {[%clk
0:02:49.1]} 18... Bf6 {[%clk 0:00:49.3]} 19. d4 {[%clk 0:02:48.8]} 19... Kd8
{[%clk 0:00:35.8]} 20. Nb5 {[%clk 0:02:46.2]} 20... Be7 {[%clk 0:00:35.5]} 21.
f3 {[%clk 0:02:41.2]} 21... Bc2 {[%clk 0:00:33]} 22. Kf2 {[%clk 0:02:37.8]}
22... Ba4 {[%clk 0:00:27.5]} 23. Nc3 {[%clk 0:02:31.7]} 23... Bb3 {[%clk
0:00:23.2]} 24. Bd3 {[%clk 0:02:32.2]} 24... Nf6 {[%clk 0:00:18.9]} 25. Ke2
{[%clk 0:02:31.9]} 25... Bc4 {[%clk 0:00:15.8]} 26. Nb5 {[%clk 0:02:31.5]} 26...
Bxd3+ {[%clk 0:00:14.7]} 27. Kxd3 {[%clk 0:02:33.4]} 27... Kd7 {[%clk
0:00:15.6]} 28. e4 {[%clk 0:02:30]} 28... Rc6 {[%clk 0:00:15.9]} 29. e5 {[%clk
0:02:29.3]} 29... Ne8 {[%clk 0:00:16.8]} 30. f4 {[%clk 0:02:25.3]} 30... h5
{[%clk 0:00:16.2]} 31. g4 {[%clk 0:02:26]} 31... hxg4 {[%clk 0:00:16.3]} 32.
hxg4 {[%clk 0:02:27.9]} 32... Rac8 {[%clk 0:00:16.2]} 33. Bc3 {[%clk 0:02:23.2]}
33... Ra8 {[%clk 0:00:16.1]} 34. Rh1 {[%clk 0:02:23.2]} 34... Bf8 {[%clk
0:00:12]} 35. Rh8 {[%clk 0:02:22.9]} 35... Be7 {[%clk 0:00:12.1]} 36. Rah1
{[%clk 0:02:23.7]} 36... Rcc8 {[%clk 0:00:12.4]} 37. R1h7 {[%clk 0:02:24.4]}
37... Kc6 {[%clk 0:00:11.7]} 38. a4 {[%clk 0:02:05.7]} 38... Rxa4 {[%clk
0:00:12.6]} 39. Nd6 {[%clk 0:02:03.3]} 39... Bxd6 {[%clk 0:00:11.3]} 40. exd6
{[%clk 0:02:04.2]} 40... Kxd6 {[%clk 0:00:11.1]} 41. Rf8 {[%clk 0:02:03.4]}
41... Ke7 {[%clk 0:00:08.9]} 42. Rhh8 {[%clk 0:02:04.1]} 42... Raa8 {[%clk
0:00:09.6]} 43. Bb4+ {[%clk 0:02:04.8]} 43... Kf6 {[%clk 0:00:09.7]} 44. Ke3
{[%clk 0:01:34.8]} 44... b5 {[%clk 0:00:11]} 45. Kf3 {[%clk 0:01:34.6]} 45... b6
{[%clk 0:00:12.4]} 46. Kg3 {[%clk 0:01:35.2]} 46... Kg6 {[%clk 0:00:13.5]} 47.
Kh4 {[%clk 0:01:34.5]} 47... Rab8 {[%clk 0:00:12.8]} 48. Rh5 {[%clk 0:01:34.1]}
48... Nf6 {[%clk 0:00:12.2]} 49. f5+ {[%clk 0:01:34.6]} 49... exf5 {[%clk
0:00:11.8]} 50. gxf5# {[%clk 0:01:36.5]} 1-0

[Event "*** Titled Tuesday Blitz"]
[Site "Chess.com"]
[Date "2018.04.03"]
[Round "6"]
[White "XDPS"]
[Black "Mykola-Bortnyk"]
[Result "1-0"]
[WhiteElo "2589"]
[BlackElo "2686"]
[TimeControl "180+2"]
[EndTime "14:18:38 PDT"]
[Termination "XDPS won by resignation"]

1. d4 {[%clk 0:03:01.9]} 1... a6 {[%clk 0:03:00.7]} 2. e4 {[%clk 0:03:02]} 2...
b6 {[%clk 0:03:01.4]} 3. Nf3 {[%clk 0:02:58.6]} 3... Bb7 {[%clk 0:03:02.4]} 4.
Nc3 {[%clk 0:02:59.7]} 4... h6 {[%clk 0:03:02.9]} 5. Be2 {[%clk 0:02:59.7]} 5...
g6 {[%clk 0:03:02]} 6. O-O {[%clk 0:03:00.5]} 6... Bg7 {[%clk 0:02:55.5]} 7. Re1
{[%clk 0:03:00.9]} 7... e6 {[%clk 0:02:56.9]} 8. Bf1 {[%clk 0:03:00.8]} 8... d6
{[%clk 0:02:58.3]} 9. a4 {[%clk 0:03:00.4]} 9... Ne7 {[%clk 0:02:59.1]} 10. Be3
{[%clk 0:02:55.5]} 10... O-O {[%clk 0:02:59.2]} 11. Qd2 {[%clk 0:02:55.1]} 11...
Kh7 {[%clk 0:03:00.2]} 12. Rad1 {[%clk 0:02:51.6]} 12... Nd7 {[%clk 0:03:01]}
13. h4 {[%clk 0:02:47.4]} 13... f5 {[%clk 0:02:50.3]} 14. Bd3 {[%clk 0:02:33]}
14... Nf6 {[%clk 0:02:33.7]} 15. e5 {[%clk 0:02:11.7]} 15... Nh5 {[%clk
0:02:24]} 16. Qe2 {[%clk 0:01:59]} 16... Ng8 {[%clk 0:01:56.8]} 17. d5 {[%clk
0:01:23.6]} 17... dxe5 {[%clk 0:01:48]} 18. dxe6 {[%clk 0:01:19.3]} 18... Bxf3
{[%clk 0:01:47.5]} 19. Qxf3 {[%clk 0:01:12.3]} 19... e4 {[%clk 0:01:48.1]} 20.
Nxe4 {[%clk 0:01:13.4]} 20... fxe4 {[%clk 0:01:48.5]} 21. Qxe4 {[%clk
0:01:12.3]} 21... Qf6 {[%clk 0:01:47.4]} 22. Bd4 {[%clk 0:01:13]} 22... Qf5
{[%clk 0:01:39.6]} 23. Qxf5 {[%clk 0:01:09.6]} 23... gxf5 {[%clk 0:01:39.2]} 24.
e7 {[%clk 0:00:57.9]} 24... Bxd4 {[%clk 0:01:32.3]} 25. exf8=Q {[%clk
0:00:57.6]} 25... Bxf2+ {[%clk 0:01:31.7]} 26. Kxf2 {[%clk 0:00:57.8]} 26...
Rxf8 {[%clk 0:01:33.6]} 27. g4 {[%clk 0:00:57.8]} 27... Ng7 {[%clk 0:01:26]} 28.
Re5 {[%clk 0:00:53.5]} 28... Nf6 {[%clk 0:01:24.3]} 29. Rg1 {[%clk 0:00:33.7]}
29... h5 {[%clk 0:01:24.1]} 30. gxf5 {[%clk 0:00:24.7]} 30... Ng4+ {[%clk
0:01:23.4]} 31. Rxg4 {[%clk 0:00:26.2]} 31... hxg4 {[%clk 0:01:25.3]} 32. Kg3
{[%clk 0:00:28]} 32... Nh5+ {[%clk 0:01:17.4]} 33. Kxg4 {[%clk 0:00:28.6]} 33...
Nf6+ {[%clk 0:01:19.3]} 34. Kg5 {[%clk 0:00:27.7]} 34... Kh8 {[%clk 0:01:16.3]}
35. Re7 {[%clk 0:00:26.8]} 35... Nd5 {[%clk 0:01:15.4]} 36. Re6 {[%clk
0:00:22.9]} 36... Rg8+ {[%clk 0:00:58.8]} 37. Rg6 {[%clk 0:00:23.9]} 37... Re8
{[%clk 0:01:00]} 38. f6 {[%clk 0:00:21.2]} 38... Re5+ {[%clk 0:00:58.6]} 39. Kg4
{[%clk 0:00:21.1]} 39... Re8 {[%clk 0:00:47.5]} 40. f7 {[%clk 0:00:22.3]} 40...
Rf8 {[%clk 0:00:48.8]} 41. Rg8+ {[%clk 0:00:23.4]} 41... Rxg8+ {[%clk
0:00:47.2]} 42. fxg8=Q+ {[%clk 0:00:25.3]} 42... Kxg8 {[%clk 0:00:48.1]} 43. Bc4
{[%clk 0:00:26.9]} 43... c6 {[%clk 0:00:49.2]} 44. Kf5 {[%clk 0:00:28.1]} 1-0